fUST/lending_fUST_20250625
["ID","MTS","AMOUNT","RATE_DAILY","PERIOD"]
[367497760,1750827041047,-460.0,0.00016931,2]
[367497761,1750827041056,-460.0,0.00016931,2]
[367497762,1750827041065,-703.52,0.00016931,2]
[367497763,1750827041074,-460.0,0.00016931,2]
[367497764,1750827041084,-460.0,0.00016931,2]
[367497765,1750827041093,-460.0,0.00016931,2]
[367497766,1750827041102,-460.0,0.00016931,2]
[367497767,1750827041111,-464.76643078,0.00016931,2]
[367497768,1750827041123,-460.0,0.00016931,2]
[367497769,1750827041132,-460.0,0.00016931,2]
[367497770,1750827041141,-460.0,0.00016931,2]
[367497771,1750827041150,-1213.37,0.00016931,2]
[367497772,1750827041159,-460.0,0.00016931,2]
[367497773,1750827041168,-460.0,0.00016931,2]
[367497774,1750827041178,-540.46,0.00016931,2]
[367497775,1750827041187,-460.0,0.00016931,2]
[367497776,1750827041196,-460.0,0.00016931,2]
[367497777,1750827041205,-460.0,0.00016931,2]
[367497778,1750827041215,-460.0,0.00016931,2]
[367497779,1750827041224,-460.95575921,0.00016931,2]
[367497780,1750827041233,-460.0,0.00016931,2]
[367497781,1750827041242,-1319.97,0.00016931,2]
[367497782,1750827041252,-460.0,0.00016931,2]
[367497783,1750827041261,-460.0,0.00016931,2]
[367497784,1750827041271,-460.0,0.00016931,2]
[367497785,1750827041280,-460.0,0.00016931,2]
[367497786,1750827041290,-460.0,0.00016931,2]
[367497787,1750827041299,-460.0,0.00016931,2]
[367497788,1750827041308,-460.0,0.00016931,2]
[367497789,1750827041317,-465.81,0.00016931,2]
[367497790,1750827041327,-250.0,0.00016931,2]
[367497791,1750827041336,-500.0,0.00016931,2]
[367497792,1750827041345,-460.0,0.00016931,2]
[367497793,1750827041354,-460.0,0.00016931,2]
[367497794,1750827041363,-559.24609903,0.00016931,2]
[367497795,1750827041493,-348.50355534,0.00016931,2]
[367497796,1750827041503,-460.0,0.00016931,2]
[367497797,1750827041512,-801.55,0.00016931,2]
[367497798,1750827041521,-517.19,0.00016931,2]
[367497799,1750827041530,-182.47642703,0.00016931,2]
[367497800,1750827041540,-460.0,0.00016931,2]
[367497801,1750827041550,-460.0,0.00016931,2]
[367497802,1750827041558,-460.0,0.00016931,2]
[367497803,1750827041568,-460.0,0.00016931,2]
[367497804,1750827041577,-479.98,0.00016931,2]
[367497805,1750827041586,-460.0,0.00016931,2]
[367497806,1750827041595,-460.0,0.00016931,2]
[367497807,1750827041604,-460.0,0.00016931,2]
[367497808,1750827041614,-460.0,0.00016931,2]
[367497809,1750827041624,-460.0,0.00016931,2]
[367497810,1750827041633,-460.0,0.00016931,2]
[367497811,1750827041643,-450.52023403,0.00016931,2]
[367497812,1750827041653,-460.0,0.00016931,2]
[367497813,1750827041662,-460.0,0.00016931,2]
[367497814,1750827041672,-460.0,0.00016931,2]
[367497815,1750827041681,-460.0,0.00016931,2]
[367497816,1750827041691,-473.12,0.00016931,2]
[367497817,1750827041700,-460.68245055,0.00016931,2]
[367497818,1750827041709,-460.0,0.00016931,2]
[367497819,1750827041718,-460.0,0.00016931,2]
[367497820,1750827041728,-460.0,0.00016931,2]
[367497821,1750827041737,-546.67,0.00016931,2]
[367497822,1750827041746,-460.0,0.00016931,2]
[367497823,1750827041755,-460.0,0.00016931,2]
[367497824,1750827041765,-460.0,0.00016931,2]
[367497825,1750827041776,-460.0,0.00016931,2]
[367497826,1750827041786,-460.0,0.00016931,2]
[367497827,1750827041795,-460.0,0.00016931,2]
[367497828,1750827041804,-460.0,0.00016931,2]
[367497829,1750827041814,-460.0,0.00016931,2]
[367497830,1750827041823,-460.9824219,0.00016931,2]
[367497831,1750827041832,-460.0,0.00016931,2]
[367497832,1750827041841,-460.0,0.00016931,2]
[367497833,1750827041850,-460.0,0.00016931,2]
[367497834,1750827041862,-460.0,0.00016931,2]
[367497835,1750827041872,-460.0,0.00016931,2]
[367497836,1750827041880,-500.0,0.00016931,2]
[367497837,1750827041890,-500.0,0.00016931,2]
[367497838,1750827041899,-460.0,0.00016931,2]
[367497839,1750827041908,-460.0,0.00016931,2]
[367497840,1750827041917,-460.0,0.00016931,2]
[367497841,1750827041927,-211.28784642,0.00016932,2]
[367497842,1750827041935,-460.0,0.00016932,2]
[367497843,1750827041945,-460.0,0.00016932,2]
[367497844,1750827041954,-460.0,0.00016932,2]
[367497845,1750827041963,-374.74674111,0.00016932,2]
[367497846,1750827041972,-460.0,0.00016932,2]
[367497847,1750827041981,-460.0,0.00016932,2]
[367497848,1750827041990,-460.0,0.00016932,2]
[367497849,1750827041999,-538.39513772,0.00016932,2]
[367497850,1750827042008,-460.0,0.00016932,2]
[367497851,1750827042017,-460.90261419,0.00016932,2]
[367497852,1750827042027,-460.0,0.00016932,2]
[367497853,1750827042036,-460.0,0.00016932,2]
[367497854,1750827042046,-460.0,0.00016932,2]
[367497855,1750827042055,-371.64696487,0.00016932,2]
[367497856,1750827042064,-460.0,0.00016932,2]
[367497857,1750827042073,-460.0,0.00016932,2]
[367497858,1750827042082,-460.0,0.00016932,2]
[367497859,1750827042091,-460.0,0.00016932,2]
[367497860,1750827042100,-462.32454413,0.00016932,2]
[367497861,1750827042110,-460.0,0.00016932,2]
[367497862,1750827042122,-460.0,0.00016932,2]
[367497863,1750827042131,-460.0,0.00016932,2]
[367497864,1750827042141,-460.0,0.00016932,2]
[367497865,1750827042151,-460.0,0.00016932,2]
[367497866,1750827042161,-460.0,0.00016932,2]
[367497867,1750827042171,-460.0,0.00016932,2]
[367497868,1750827042180,-460.0,0.00016932,2]
[367497869,1750827042189,-460.0,0.00016932,2]
[367497870,1750827042199,-460.0,0.00016932,2]
[367497871,1750827042208,-488.7,0.00016932,2]
[367497872,1750827042216,-460.0,0.00016932,2]
[367497873,1750827042225,-460.0,0.00016932,2]
[367497874,1750827042235,-460.0,0.00016932,2]
[367497875,1750827042244,-460.0,0.00016932,2]
[367497876,1750827042254,-460.0,0.00016932,2]
[367497877,1750827042264,-313.6822965,0.00016932,2]
[367497878,1750827042274,-460.0,0.00016932,2]
[367497879,1750827042283,-460.0,0.00016932,2]
[367497880,1750827042292,-509.83739879,0.00016932,2]
[367497881,1750827042301,-460.0,0.00016932,2]
[367497882,1750827042311,-460.0,0.00016932,2]
[367497883,1750827042320,-508.84,0.00016932,2]
[367497884,1750827042329,-460.0,0.00016932,2]
[367497885,1750827042339,-460.0,0.00016932,2]
[367497886,1750827042349,-460.0,0.00016932,2]
[367497887,1750827042358,-563.72,0.00016932,2]
[367497888,1750827042368,-500.0,0.00016932,2]
[367497889,1750827042377,-500.0,0.00016932,2]
[367497890,1750827042386,-500.0,0.00016932,2]
[367497891,1750827042395,-197.66,0.00016932,2]
[367497892,1750827042404,-460.0,0.00016932,2]
[367497893,1750827042415,-460.0,0.00016932,2]
[367497894,1750827042427,-460.0,0.00016932,2]
[367497895,1750827042436,-406.75284546,0.00016932,2]
[367497896,1750827042445,-460.0,0.00016932,2]
[367497897,1750827042454,-460.0,0.00016932,2]
[367497898,1750827042463,-460.0,0.00016932,2]
[367497899,1750827042472,-460.0,0.00016932,2]
[367497900,1750827042482,-460.0,0.00016932,2]
[367497901,1750827042491,-460.0,0.00016932,2]
[367497902,1750827042500,-460.0,0.00016932,2]
[367497903,1750827042509,-390.15768203,0.00016932,2]
[367497904,1750827042519,-460.0,0.00016932,2]
[367497906,1750827042529,-460.0,0.00016932,2]
[367497907,1750827042538,-460.0,0.00016932,2]
[367497908,1750827042547,-461.03936849,0.00016932,2]
[367497909,1750827042556,-460.0,0.00016932,2]
[367497910,1750827042565,-460.0,0.00016932,2]
[367497912,1750827042575,-486.58,0.00016932,2]
[367497913,1750827042584,-460.0,0.00016932,2]
[367497914,1750827042594,-500.0,0.00016932,2]
[367497915,1750827042604,-500.0,0.00016932,2]
[367497916,1750827042613,-500.0,0.00016932,2]
[367497917,1750827042622,-500.0,0.00016932,2]
[367497918,1750827042632,-192.09019828,0.00016933,2]
[367497919,1750827042641,-460.0,0.00016933,2]
[367497920,1750827042651,-460.0,0.00016933,2]
[367497921,1750827042660,-460.0,0.00016933,2]
[367497922,1750827042669,-460.0,0.00016933,2]
[367497923,1750827042678,-460.0,0.00016933,2]
[367497924,1750827042687,-460.0,0.00016933,2]
[367497925,1750827042697,-460.0,0.00016933,2]
[367497926,1750827042706,-460.0,0.00016933,2]
[367497928,1750827042715,-460.0,0.00016933,2]
[367497929,1750827042725,-460.0,0.00016933,2]
[367497930,1750827042734,-460.0,0.00016933,2]
[367497931,1750827042744,-460.0,0.00016933,2]
[367497932,1750827042753,-460.0,0.00016933,2]
[367497933,1750827042763,-460.0,0.00016933,2]
[367497934,1750827042776,-578.1,0.00016933,2]
[367497935,1750827042785,-320.18067694,0.00016933,2]
[367497936,1750827042793,-460.0,0.00016933,2]
[367497937,1750827042802,-460.0,0.00016933,2]
[367497938,1750827042811,-460.0,0.00016933,2]
[367497939,1750827042820,-460.0,0.00016933,2]
[367497940,1750827042830,-460.0,0.00016933,2]
[367497941,1750827042840,-460.0,0.00016933,2]
[367497942,1750827042851,-403.45053996,0.00016933,2]
[367497943,1750827042862,-464.28194219,0.00016933,2]
[367497944,1750827042871,-460.0,0.00016933,2]
[367497945,1750827042880,-460.0,0.00016933,2]
[367497946,1750827042889,-567.89770754,0.00016933,2]
[367497947,1750827042899,-460.0,0.00016933,2]
[367497948,1750827042908,-460.0,0.00016933,2]
[367497949,1750827042918,-460.0,0.00016933,2]
[367497950,1750827042928,-460.0,0.00016933,2]
[367497951,1750827042938,-460.0,0.00016933,2]
[367497952,1750827042948,-460.0,0.00016933,2]
[367497953,1750827042958,-469.61,0.00016933,2]
[367497954,1750827042967,-460.0,0.00016933,2]
[367497955,1750827042977,-460.0,0.00016933,2]
[367497956,1750827042986,-460.0,0.00016933,2]
[367497957,1750827042995,-460.0,0.00016933,2]
[367497958,1750827043005,-460.0,0.00016933,2]
[367497959,1750827043015,-460.0,0.00016933,2]
[367497960,1750827043024,-460.0,0.00016933,2]
[367497961,1750827043033,-460.0,0.00016933,2]
[367497962,1750827043042,-460.78246173,0.00016933,2]
[367497963,1750827043052,-460.0,0.00016933,2]
[367497964,1750827043062,-460.0,0.00016933,2]
[367497965,1750827043071,-460.0,0.00016933,2]
[367497966,1750827043080,-461.69,0.00016933,2]
[367497967,1750827043089,-460.0,0.00016933,2]
[367497968,1750827043099,-460.0,0.00016933,2]
[367497969,1750827043108,-460.0,0.00016933,2]
[367497970,1750827043117,-460.0,0.00016933,2]
[367497971,1750827043126,-460.0,0.00016933,2]
[367497972,1750827043135,-460.0,0.00016933,2]
[367497973,1750827043145,-460.0,0.00016933,2]
[367497974,1750827043154,-460.0,0.00016933,2]
[367497975,1750827043164,-531.63,0.00016933,2]
[367497976,1750827043173,-460.0,0.00016933,2]
[367497977,1750827043182,-460.0,0.00016933,2]
[367497978,1750827043191,-460.0,0.00016933,2]
[367497980,1750827043201,-460.0,0.00016933,2]
[367497981,1750827043211,-460.0,0.00016933,2]
[367497982,1750827043220,-460.0,0.00016933,2]
[367497984,1750827043229,-460.0,0.00016933,2]
[367497986,1750827043238,-575.46,0.00016933,2]
[367497987,1750827043247,-331.09688267,0.00016933,2]
[367497988,1750827043256,-460.0,0.00016933,2]
[367497989,1750827043265,-460.0,0.00016933,2]
[367497990,1750827043274,-460.0,0.00016933,2]
[367497991,1750827043283,-577.13,0.00016933,2]
[367497992,1750827043292,-460.0,0.00016933,2]
[367497993,1750827043301,-460.0,0.00016933,2]
[367497994,1750827043310,-460.0,0.00016933,2]
[367497995,1750827043318,-460.0,0.00016933,2]
[367497996,1750827043327,-411.34246556,0.00016933,2]
[367497997,1750827043337,-460.0,0.00016933,2]
[367497998,1750827043347,-460.0,0.00016933,2]
[367497999,1750827043355,-460.0,0.00016933,2]
[367498000,1750827043365,-460.0,0.00016933,2]
[367498001,1750827043374,-460.0,0.00016933,2]
[367498002,1750827043383,-460.0,0.00016933,2]
[367498003,1750827043392,-460.0,0.00016933,2]
[367498004,1750827043401,-460.0,0.00016933,2]
[367498005,1750827043410,-500.0,0.00016933,2]
[367498006,1750827043419,-460.0,0.00016933,2]
[367498007,1750827043428,-460.0,0.00016933,2]
[367498008,1750827043438,-460.0,0.00016933,2]
[367498009,1750827043447,-460.0,0.00016933,2]
[367498010,1750827043456,-460.0,0.00016933,2]
[367498011,1750827043465,-460.0,0.00016933,2]
[367498012,1750827043475,-460.0,0.00016933,2]
[367498013,1750827043484,-460.0,0.00016933,2]
[367498014,1750827043493,-460.0,0.00016933,2]
[367498015,1750827043502,-460.0,0.00016933,2]
[367498016,1750827043512,-460.0,0.00016933,2]
[367498017,1750827043520,-460.0,0.00016933,2]
[367498018,1750827043529,-460.0,0.00016933,2]
[367498019,1750827043538,-460.0,0.00016933,2]
[367498020,1750827043548,-460.0,0.00016933,2]
[367498021,1750827043558,-223.46578571,0.00016933,2]
[367498022,1750827043567,-470.06363258,0.00016933,2]
[367498023,1750827043576,-460.0,0.00016933,2]
[367498024,1750827043585,-446.01418617,0.00016933,2]
[367498025,1750827043595,-360.3797659,0.00016933,2]
[367498026,1750827043604,-460.0,0.00016933,2]
[367498027,1750827043614,-460.0,0.00016933,2]
[367498028,1750827043624,-460.0,0.00016933,2]
[367498029,1750827043634,-460.0,0.00016933,2]
[367498030,1750827043643,-460.0,0.00016933,2]
[367498031,1750827043652,-460.0,0.00016933,2]
[367498032,1750827043662,-307.69259463,0.00016933,2]
[367498033,1750827043671,-460.0,0.00016933,2]
[367498034,1750827043680,-598.59504925,0.00016933,2]
[367498035,1750827043689,-460.0,0.00016933,2]
[367498036,1750827043698,-460.0,0.00016933,2]
[367498037,1750827043707,-460.0,0.00016933,2]
[367498038,1750827043717,-256.11180284,0.00016933,2]
[367498039,1750827043726,-460.0,0.00016933,2]
[367498040,1750827043735,-348.54680832,0.00016933,2]
[367498041,1750827043745,-460.0,0.00016933,2]
[367498042,1750827043754,-326.92886978,0.00016933,2]
[367498043,1750827043763,-460.0,0.00016933,2]
[367498044,1750827043776,-310.00762965,0.00016934,2]
[367498045,1750827043785,-460.0,0.00016934,2]
[367498046,1750827043795,-460.0,0.00017203,2]
[367498047,1750827043804,-321.05,0.00017203,2]
[367498048,1750827043813,-284.27,0.00017203,2]
[367498049,1750827043822,-1107.28,0.00017203,2]
[367498050,1750827043832,-458.3906624,0.00017203,2]
[367498051,1750827043841,-460.0,0.00017203,2]
[367498052,1750827043850,-460.0,0.00017203,2]
[367498053,1750827043860,-460.0,0.00017203,2]
[367498054,1750827043869,-1104.88,0.00017203,2]
[367498055,1750827043879,-4093.76,0.00017203,2]
[367498056,1750827043888,-460.0,0.00017203,2]
[367498057,1750827043897,-642.91,0.00017203,2]
[367498058,1750827043906,-1104.78,0.00017203,2]
[367498059,1750827043916,-460.0,0.00017203,2]
[367498060,1750827043925,-460.0,0.00017203,2]
[367498061,1750827043935,-460.0,0.00017203,2]
[367498062,1750827043944,-512.28834041,0.00017203,2]
[367498063,1750827043954,-460.0,0.00017203,2]
[367498064,1750827043963,-460.0,0.00017203,2]
[367498065,1750827043973,-309.01,0.00017203,2]
[367498066,1750827043982,-460.0,0.00017203,2]
[367498067,1750827043991,-843.35,0.00017203,2]
[367498068,1750827044000,-460.0,0.00017203,2]
[367498069,1750827044009,-460.0,0.00017203,2]
[367498070,1750827044019,-1197.39,0.00017203,2]
[367498071,1750827044028,-460.0,0.00017203,2]
[367498072,1750827044038,-460.0,0.00017203,2]
[367498073,1750827044047,-1953.87,0.00017203,2]
[367498074,1750827044056,-612.09399453,0.00017204,2]
[367498075,1750827044065,-460.0,0.00017204,2]
[367498076,1750827044075,-460.0,0.00017204,2]
[367498077,1750827044084,-273.72,0.00017204,2]
[367498078,1750827044093,-460.0,0.00017204,2]
[367498079,1750827044103,-460.0,0.00017204,2]
[367498080,1750827044112,-460.0,0.00017204,2]
[367498081,1750827044232,-460.0,0.00017204,2]
[367498082,1750827044242,-460.0,0.00017204,2]
[367498083,1750827044251,-460.0,0.00017204,2]
[367498084,1750827044261,-398.02,0.00017204,2]
[367498085,1750827044270,-460.0,0.00017204,2]
[367498086,1750827044280,-152.84,0.00017204,2]
[367498087,1750827044289,-164.43,0.00017204,2]
[367498088,1750827044299,-460.0,0.00017204,2]
[367498089,1750827044308,-460.0,0.00017204,2]
[367498090,1750827044319,-465.54,0.00017204,2]
[367498091,1750827044328,-310.43,0.00017204,2]
[367498092,1750827044338,-460.0,0.00017204,2]
[367498093,1750827044348,-460.0,0.00017204,2]
[367498094,1750827044357,-290.2,0.00017204,2]
[367498095,1750827044366,-157.45379476,0.00017204,2]
[367498096,1750827044377,-607.55,0.00017204,2]
[367498097,1750827044385,-460.0,0.00017204,2]
[367498098,1750827044395,-2489.45,0.00017204,2]
[367498099,1750827044404,-460.0,0.00017204,2]
[367498100,1750827044413,-460.0,0.00017204,2]
[367498101,1750827044422,-460.0,0.00017204,2]
[367498102,1750827044431,-460.0,0.00017204,2]
[367498103,1750827044441,-460.0,0.00017204,2]
[367498104,1750827044450,-460.0,0.00017204,2]
[367498105,1750827044459,-460.0,0.00017204,2]
[367498106,1750827044468,-460.0,0.00017204,2]
[367498107,1750827044478,-460.0,0.00017204,2]
[367498108,1750827044487,-460.0,0.00017204,2]
[367498109,1750827044496,-516.23663222,0.00017204,2]
[367498110,1750827044505,-162.27,0.00017204,2]
[367498111,1750827044514,-254.46,0.00017204,2]
[367498112,1750827044523,-460.0,0.00017204,2]
[367498113,1750827044533,-464.08138043,0.00017204,2]
[367498114,1750827044542,-770.29,0.00017204,2]
[367498115,1750827044551,-460.0,0.00017204,2]
[367498116,1750827044560,-460.0,0.00017204,2]
[367498117,1750827044569,-456.33829143,0.00017204,2]
[367498118,1750827044579,-460.0,0.00017204,2]
[367498119,1750827044588,-460.0,0.00017204,2]
[367498120,1750827044597,-460.0,0.00017204,2]
[367498121,1750827044607,-434.26567269,0.00017204,2]
[367498122,1750827044616,-460.0,0.00017204,2]
[367498123,1750827044626,-460.0,0.00017204,2]
[367498124,1750827044636,-207.45111952,0.00017204,2]
[367498125,1750827044645,-460.0,0.00017204,2]
[367498126,1750827044655,-395.45,0.00017205,2]
[367498127,1750827044665,-460.0,0.00017205,2]
[367498128,1750827044674,-515.32,0.00017205,2]
[367498129,1750827044683,-431.24,0.00017205,2]
[367498130,1750827044693,-460.0,0.00017205,2]
[367498131,1750827044702,-460.0,0.00017205,2]
[367498132,1750827044711,-460.0,0.00017205,2]
[367498133,1750827044720,-460.0,0.00017205,2]
[367498134,1750827044730,-460.0,0.00017205,2]
[367498135,1750827044739,-460.0,0.00017205,2]
[367498136,1750827044749,-460.0,0.00017205,2]
[367498137,1750827044758,-460.0,0.00017205,2]
[367498138,1750827044770,-460.0,0.00017205,2]
[367498139,1750827044780,-496.82,0.00017205,2]
[367498140,1750827044790,-460.0,0.00017205,2]
[367498141,1750827044799,-537.3,0.00017205,2]
[367498142,1750827044809,-418.45,0.00017205,2]
[367498143,1750827044819,-368.61,0.00017205,2]
[367498144,1750827044828,-460.0,0.00017205,2]
[367498145,1750827044837,-460.0,0.00017205,2]
[367498146,1750827044847,-375.91,0.00017205,2]
[367498147,1750827044856,-460.0,0.00017205,2]
[367498148,1750827044865,-460.0,0.00017205,2]
[367498149,1750827044875,-460.0,0.00017205,2]
[367498150,1750827044885,-226.91,0.00017205,2]
[367498151,1750827044894,-278.61,0.00017205,2]
[367498152,1750827044904,-460.0,0.00017205,2]
[367498153,1750827044913,-367.17,0.00017205,2]
[367498154,1750827044923,-338.68,0.00017205,2]
[367498155,1750827044932,-460.0,0.00017205,2]
[367498156,1750827044941,-460.0,0.00017205,2]
[367498157,1750827044950,-302.59,0.00017205,2]
[367498158,1750827044960,-432.92,0.00017205,2]
[367498159,1750827044968,-460.0,0.00017205,2]
[367498160,1750827044978,-508.87,0.00017205,2]
[367498161,1750827044987,-460.0,0.00017205,2]
[367498162,1750827044997,-460.70251156,0.00017205,2]
[367498163,1750827045006,-460.0,0.00017205,2]
[367498164,1750827045015,-460.0,0.00017205,2]
[367498165,1750827045025,-460.0,0.00017205,2]
[367498166,1750827045034,-460.0,0.00017205,2]
[367498167,1750827045043,-460.0,0.00017205,2]
[367498168,1750827045052,-460.0,0.00017205,2]
[367498169,1750827045061,-460.0,0.00017205,2]
[367498170,1750827045071,-460.0,0.00017205,2]
[367498171,1750827045080,-460.0,0.00017205,2]
[367498172,1750827045089,-460.0,0.00017205,2]
[367498173,1750827045098,-460.0,0.00017205,2]
[367498174,1750827045106,-460.0,0.00017205,2]
[367498175,1750827045115,-460.0,0.00017205,2]
[367498176,1750827045125,-460.0,0.00017205,2]
[367498177,1750827045134,-460.0,0.00017205,2]
[367498178,1750827045143,-1214.54,0.00017205,2]
[367498179,1750827045153,-460.0,0.00017205,2]
[367498180,1750827045162,-460.0,0.00017205,2]
[367498181,1750827045171,-460.0,0.00017205,2]
[367498182,1750827045180,-568.02,0.00017205,2]
[367498183,1750827045189,-460.0,0.00017205,2]
[367498184,1750827045198,-703.52,0.00017205,2]
[367498185,1750827045207,-460.0,0.00017205,2]
[367498186,1750827045216,-460.0,0.00017205,2]
[367498187,1750827045225,-460.0,0.00017205,2]
[367498188,1750827045234,-460.0,0.00017205,2]
[367498189,1750827045243,-1213.37,0.00017205,2]
[367498190,1750827045252,-460.0,0.00017205,2]
[367498191,1750827045261,-433.7,0.00017205,2]
[367498192,1750827045271,-460.0,0.00017205,2]
[367498193,1750827045280,-1319.97,0.00017205,2]
[367498194,1750827045294,-249.37,0.00017205,2]
[367498195,1750827045302,-460.0,0.00017205,2]
[367498196,1750827045311,-460.0,0.00017205,2]
[367498197,1750827045321,-603.27,0.00017205,2]
[367498198,1750827045330,-391.85,0.00017205,2]
[367498199,1750827045339,-369.36,0.00017205,2]
[367498200,1750827045348,-460.0,0.00017205,2]
[367498201,1750827045357,-361.21,0.00017205,2]
[367498202,1750827045366,-801.55,0.00017205,2]
[367498203,1750827045375,-460.0,0.00017205,2]
[367498204,1750827045385,-460.0,0.00017205,2]
[367498205,1750827045394,-479.98,0.00017205,2]
[367498206,1750827045406,-460.0,0.00017205,2]
[367498207,1750827045415,-504.31,0.00017205,2]
[367498208,1750827045424,-472.1,0.00017205,2]
[367498210,1750827045439,-460.0,0.00017205,2]
[367498211,1750827045453,-460.0,0.00017205,2]
[367498212,1750827045468,-460.0,0.00017205,2]
[367498213,1750827045481,-516.27,0.00017205,2]
[367498214,1750827045492,-460.0,0.00017205,2]
[367498215,1750827045505,-460.0,0.00017205,2]
[367498216,1750827045518,-460.0,0.00017205,2]
[367498217,1750827045533,-460.0,0.00017205,2]
[367498219,1750827045545,-460.0,0.00017205,2]
[367498222,1750827045558,-460.0,0.00017205,2]
[367498224,1750827045571,-569.56652864,0.00017205,2]
[367498226,1750827045584,-460.0,0.00017206,2]
[367498229,1750827045598,-460.0,0.00017206,2]
[367498231,1750827045610,-420.47972615,0.00017206,2]
[367498233,1750827045622,-460.0,0.00017206,2]
[367498235,1750827045634,-460.0,0.00017206,2]
[367498237,1750827045645,-437.01,0.00017206,2]
[367498239,1750827045658,-460.0,0.00017206,2]
[367498241,1750827045671,-444.49377865,0.00017206,2]
[367498242,1750827045683,-460.0,0.00017206,2]
[367498243,1750827045695,-371.11325754,0.00017206,2]
[367498244,1750827045705,-460.0,0.00017206,2]
[367498245,1750827045715,-460.0,0.00017206,2]
[367498246,1750827045728,-460.0,0.00017206,2]
[367498247,1750827045740,-460.0,0.00017206,2]
[367498248,1750827045752,-460.0,0.00017206,2]
[367498249,1750827045765,-461.68036514,0.00017207,2]
[367498250,1750827045780,-460.0,0.00017207,2]
[367498251,1750827045792,-460.0,0.00017207,2]
[367498252,1750827045806,-460.0,0.00017207,2]
[367498254,1750827045819,-460.0,0.00017207,2]
[367498255,1750827045832,-460.0,0.00017207,2]
[367498256,1750827045843,-601.63883088,0.00017207,2]
[367498257,1750827045854,-460.0,0.00017207,2]
[367498258,1750827045864,-534.02,0.00017207,2]
[367498259,1750827045875,-462.2,0.00017207,2]
[367498260,1750827045887,-460.0,0.00017207,2]
[367498261,1750827045901,-589.83,0.00017207,2]
[367498262,1750827045913,-460.0,0.00017207,2]
[367498263,1750827045925,-509.9,0.00017207,2]
[367498264,1750827045935,-460.0,0.00017207,2]
[367498265,1750827045947,-460.0,0.00017207,2]
[367498266,1750827045959,-461.69,0.00017207,2]
[367498267,1750827045971,-460.0,0.00017207,2]
[367498268,1750827045982,-460.0,0.00017207,2]
[367498269,1750827045993,-460.0,0.00017207,2]
[367498270,1750827046003,-460.0,0.00017207,2]
[367498271,1750827046014,-460.0,0.00017207,2]
[367498272,1750827046026,-460.0,0.00017207,2]
[367498273,1750827046038,-570.36,0.00017207,2]
[367498274,1750827046049,-336.43,0.00017207,2]
[367498275,1750827046060,-460.0,0.00017207,2]
[367498276,1750827046073,-460.0,0.00017207,2]
[367498277,1750827046084,-460.0,0.00017207,2]
[367498278,1750827046095,-511.46,0.00017207,2]
[367498279,1750827046106,-460.0,0.00017207,2]
[367498280,1750827046117,-460.0,0.00017207,2]